fUST/lending_fUST_20250724
["ID","MTS","AMOUNT","RATE_DAILY","PERIOD"]
[374483860,1753319446292,-730.68,0.0002,2]
[374483862,1753319446302,-460.0,0.0002,2]
[374483864,1753319446312,-460.0,0.0002,2]
[374483866,1753319446321,-886.11,0.0002,2]
[374483868,1753319446331,-245.0,0.0002,2]
[374483870,1753319446341,-500.0,0.0002,2]
[374483872,1753319446351,-151.0,0.0002,2]
[374483874,1753319446361,-663.34,0.0002,2]
[374483876,1753319446370,-151.0,0.0002,2]
[374483878,1753319446380,-460.0,0.0002,2]
[374483880,1753319446389,-404.2321672,0.0002,2]
[374483882,1753319446399,-460.0,0.0002,2]
[374483884,1753319446409,-460.0,0.0002,2]
[374483886,1753319446419,-460.0,0.0002,2]
[374483888,1753319446429,-460.0,0.0002,2]
[374483890,1753319446440,-530.04,0.0002,2]
[374483892,1753319446450,-460.0,0.0002,2]
[374483894,1753319446460,-460.0,0.0002,2]
[374483896,1753319446470,-460.0,0.0002,2]
[374483898,1753319446480,-460.0,0.0002,2]
[374483900,1753319446491,-1048.0,0.0002,2]
[374483902,1753319446500,-151.0,0.0002,2]
[374483904,1753319446511,-181.15,0.0002,2]
[374483906,1753319446521,-460.0,0.0002,2]
[374483908,1753319446531,-460.0,0.0002,2]
[374483910,1753319446542,-460.0,0.0002,2]
[374483912,1753319446552,-460.0,0.0002,2]
[374483914,1753319446562,-460.0,0.0002,2]
[374483916,1753319446572,-460.0,0.0002,2]
[374483918,1753319446583,-460.0,0.0002,2]
[374483920,1753319446593,-460.0,0.0002,2]
[374483922,1753319446603,-460.0,0.0002,2]
[374483924,1753319446613,-460.0,0.0002,2]
[374483926,1753319446623,-460.0,0.0002,2]
[374483928,1753319446632,-460.0,0.0002,2]
[374483930,1753319446642,-460.0,0.0002,2]
[374483932,1753319446651,-460.0,0.0002,2]
[374483934,1753319446661,-460.0,0.0002,2]
[374483936,1753319446673,-799.0,0.0002,2]
[374483938,1753319446683,-460.0,0.0002,2]
[374483940,1753319446693,-151.0,0.0002,2]
[374483942,1753319446703,-460.0,0.0002,2]
[374483944,1753319446714,-151.0,0.0002,2]
[374483946,1753319446723,-460.0,0.0002,2]
[374483948,1753319446733,-460.0,0.0002,2]
[374483950,1753319446743,-460.0,0.0002,2]
[374483952,1753319446753,-189.64200099,0.0002,2]
[374483954,1753319446762,-460.0,0.0002,2]
[374483956,1753319446771,-558.73272528,0.0002,2]
[374483958,1753319446781,-460.0,0.0002,2]
[374483960,1753319446792,-460.0,0.0002,2]
[374483962,1753319446801,-460.0,0.0002,2]
[374483964,1753319446810,-460.0,0.0002,2]
[374483966,1753319446819,-460.0,0.0002,2]
[374483968,1753319446829,-175.09387849,0.0002,2]
[374483970,1753319446838,-460.0,0.0002,2]
[374483972,1753319446848,-1986.41,0.0002,2]
[374483974,1753319446860,-460.0,0.0002,2]
[374483976,1753319446870,-460.0,0.0002,2]
[374483978,1753319446880,-460.0,0.0002,2]
[374483980,1753319446889,-515.99,0.0002,2]
[374483982,1753319446899,-460.0,0.0002,2]
[374483984,1753319446908,-466.28,0.0002,2]
[374483986,1753319446919,-460.0,0.0002,2]
[374483988,1753319446929,-460.0,0.0002,2]
[374483989,1753319446940,-460.0,0.0002,2]
[374483992,1753319446950,-372.94544657,0.0002,2]
[374483993,1753319446961,-460.0,0.0002,2]
[374483996,1753319446971,-460.0,0.0002,2]
[374483998,1753319446982,-557.7,0.0002,2]
[374484000,1753319446991,-460.0,0.0002,2]
[374484002,1753319447001,-533.05,0.0002,2]
[374484003,1753319447011,-4232.98,0.0002,2]
[374484005,1753319447020,-460.0,0.0002,2]
[374484008,1753319447031,-1726.98,0.0002,2]
[374484009,1753319447043,-460.0,0.0002,2]
[374484012,1753319447053,-269.08597761,0.0002,2]
[374484013,1753319447063,-460.0,0.0002,2]
[374484016,1753319447073,-460.0,0.0002,2]
[374484017,1753319447083,-460.0,0.0002,2]
[374484020,1753319447094,-668.25,0.0002,2]
[374484021,1753319447103,-787.68,0.0002,2]
[374484023,1753319447113,-966.97,0.0002,2]
[374484026,1753319447123,-1462.36,0.0002,2]
[374484027,1753319447133,-460.0,0.0002,2]
[374484030,1753319447142,-460.0,0.0002,2]
[374484032,1753319447152,-460.0,0.0002,2]
[374484034,1753319447161,-460.0,0.0002,2]
[374484035,1753319447171,-460.0,0.0002,2]
[374484037,1753319447181,-460.0,0.0002,2]
[374484039,1753319447191,-287.3640022,0.0002,2]
[374484041,1753319447200,-151.0,0.0002,2]
[374484043,1753319447209,-460.0,0.0002,2]
[374484045,1753319447220,-606.07,0.0002,2]
[374484047,1753319447229,-460.0,0.0002,2]
[374484049,1753319447239,-151.0,0.0002,2]
[374484051,1753319447249,-199.67216678,0.0002,2]
[374484054,1753319447260,-460.0,0.0002,2]
[374484055,1753319447270,-151.0,0.0002,2]
[374484058,1753319447280,-460.0,0.0002,2]
[374484059,1753319447289,-3244.48,0.0002,2]
[374484061,1753319447299,-151.0,0.0002,2]
[374484063,1753319447309,-1277.08,0.0002,2]
[374484065,1753319447319,-460.0,0.0002,2]
[374484067,1753319447329,-460.0,0.0002,2]
[374484069,1753319447339,-536.23,0.0002,2]
[374484071,1753319447350,-460.0,0.0002,2]
[374484073,1753319447359,-460.0,0.0002,2]
[374484075,1753319447370,-1444.81,0.0002,2]
[374484077,1753319447379,-460.0,0.0002,2]
[374484079,1753319447389,-460.0,0.0002,2]
[374484082,1753319447400,-460.0,0.0002,2]
[374484083,1753319447410,-460.0,0.0002,2]
[374484084,1753319447420,-460.0,0.0002,2]
[374484085,1753319447429,-963.12,0.0002,2]
[374484086,1753319447440,-946.19,0.0002,2]
[374484087,1753319447450,-460.0,0.0002,2]
[374484088,1753319447460,-151.0,0.0002,2]
[374484089,1753319447470,-460.0,0.0002,2]
[374484090,1753319447480,-460.0,0.0002,2]
[374484091,1753319447489,-460.0,0.0002,2]
[374484092,1753319447499,-151.0,0.0002,2]
[374484093,1753319447509,-460.0,0.0002,2]
[374484094,1753319447518,-1000.0,0.00020021,2]
[374484095,1753319447528,-504.65986824,0.00020021,2]
[374484097,1753319447537,-501.02957041,0.00020021,2]
[374484099,1753319447549,-1000.0,0.00020021,2]
[374484101,1753319447558,-1000.0,0.00020021,2]
[374484103,1753319447568,-1000.0,0.00020021,2]
[374484105,1753319447578,-522.46748444,0.00020021,2]
[374484107,1753319447587,-196.194976,0.00020187,2]
[374484109,1753319447597,-160.0,0.00020191,2]
[374484111,1753319447607,-12622.36869388,0.00020191,2]
[374484113,1753319447616,-160.0,0.00020191,2]
[374484115,1753319447626,-160.0,0.00020191,2]
[374484117,1753319447636,-231.11583447,0.00020191,2]
[374484119,1753319447646,-160.0,0.00020191,2]
[374484121,1753319447655,-840.06856235,0.00020191,2]
[374484123,1753319447665,-173.346304,0.00020191,2]
[374484125,1753319447674,-214.67886746,0.00020193,2]
[374484127,1753319447684,-476.696448,0.00020193,2]
[374484129,1753319447694,-160.0,0.00020193,2]
[374484140,1753319447796,-526.15909479,0.00020193,2]
[374484142,1753319447806,-215.84326551,0.00020193,2]
[374484144,1753319447816,-504.2039147,0.00020222,2]
[374484146,1753319447826,-500.0,0.00020222,2]
[374484148,1753319447835,-460.16365418,0.00020222,2]
[374484150,1753319447845,-2987.40122113,0.00020273,2]
[374484152,1753319447855,-460.0,0.00020273,2]
[374484154,1753319447865,-561.21,0.00020273,2]
[374484156,1753319447874,-460.0,0.00020273,2]
[374484158,1753319447884,-730.68,0.00020273,2]
[374484160,1753319447893,-314.24537845,0.00020273,2]
[374484162,1753319447904,-886.11,0.00020273,2]
[374484164,1753319447913,-663.34,0.00020273,2]
[374484166,1753319447923,-460.0,0.00020273,2]
[374484168,1753319447932,-460.0,0.00020273,2]
[374484170,1753319447942,-460.0,0.00020273,2]
[374484172,1753319447951,-460.0,0.00020273,2]
[374484174,1753319447964,-460.0,0.00020273,2]
[374484176,1753319447974,-530.04,0.00020273,2]
[374484178,1753319447984,-460.0,0.00020273,2]
[374484180,1753319447993,-460.0,0.00020273,2]
[374484182,1753319448003,-460.0,0.00020273,2]
[374484184,1753319448013,-460.0,0.00020273,2]
[374484186,1753319448023,-460.0,0.00020273,2]
[374484188,1753319448033,-460.0,0.00020273,2]
[374484190,1753319448044,-234.5,0.00020273,2]
[374484192,1753319448054,-460.0,0.00020273,2]
[374484194,1753319448064,-460.0,0.00020273,2]
[374484196,1753319448073,-460.0,0.00020273,2]
[374484198,1753319448083,-460.0,0.00020273,2]
[374484200,1753319448093,-460.0,0.00020273,2]
[374484202,1753319448103,-460.0,0.00020273,2]
[374484204,1753319448113,-460.0,0.00020273,2]
[374484206,1753319448122,-460.0,0.00020273,2]
[374484208,1753319448133,-460.0,0.00020273,2]
[374484210,1753319448143,-460.0,0.00020273,2]
[374484212,1753319448153,-237.08,0.00020273,2]
[374484214,1753319448162,-460.0,0.00020273,2]
[374484216,1753319448171,-460.0,0.00020273,2]
[374484218,1753319448180,-460.0,0.00020273,2]
[374484220,1753319448190,-460.0,0.00020273,2]
[374484222,1753319448201,-460.0,0.00020273,2]
[374484224,1753319448211,-460.0,0.00020273,2]
[374484225,1753319448220,-460.0,0.00020273,2]
[374484228,1753319448230,-460.0,0.00020273,2]
[374484229,1753319448240,-460.0,0.00020273,2]
[374484231,1753319448250,-460.0,0.00020273,2]
[374484234,1753319448263,-1986.41,0.00020273,2]
[374484235,1753319448273,-151.348336,0.00020273,2]
[374484237,1753319448283,-460.0,0.00020273,2]
[374484240,1753319448294,-460.0,0.00020273,2]
[374484241,1753319448304,-460.0,0.00020273,2]
[374484243,1753319448314,-515.99,0.00020273,2]
[374484245,1753319448324,-460.0,0.00020273,2]
[374484247,1753319448335,-466.28,0.00020273,2]
[374484249,1753319448345,-460.0,0.00020273,2]
[374484251,1753319448355,-555.00201029,0.00020273,2]
[374484254,1753319448364,-460.0,0.00020273,2]
[374484255,1753319448374,-460.0,0.00020273,2]
[374484257,1753319448384,-460.0,0.00020273,2]
[374484259,1753319448394,-151.0,0.00020273,2]
[374484261,1753319448403,-557.7,0.00020273,2]
[374484263,1753319448414,-184.419391,0.00020273,2]
[374484265,1753319448424,-369.58098645,0.00020273,2]
[374484267,1753319448434,-533.05,0.00020273,2]
[374484269,1753319448444,-4232.98,0.00020273,2]
[374484272,1753319448454,-460.0,0.00020273,2]
[374484273,1753319448464,-1726.98,0.00020273,2]
[374484275,1753319448474,-460.0,0.00020273,2]
[374484278,1753319448484,-464.15,0.00020273,2]
[374484279,1753319448494,-228.0277737,0.00020273,2]
[374484281,1753319448503,-460.0,0.00020273,2]
[374484284,1753319448514,-668.25,0.00020273,2]
[374484286,1753319448524,-787.68,0.00020273,2]
[374484288,1753319448533,-966.97,0.00020273,2]
[374484289,1753319448543,-1462.36,0.00020273,2]
[374484291,1753319448553,-460.0,0.00020273,2]
[374484294,1753319448563,-460.0,0.00020273,2]
[374484296,1753319448573,-460.0,0.00020273,2]
[374484298,1753319448582,-460.0,0.00020273,2]
[374484300,1753319448592,-460.0,0.00020273,2]
[374484301,1753319448602,-460.0,0.00020273,2]
[374484304,1753319448612,-460.0,0.00020273,2]
[374484305,1753319448621,-606.07,0.00020273,2]
[374484308,1753319448632,-460.0,0.00020273,2]
[374484310,1753319448649,-460.0,0.00020273,2]
[374484311,1753319448661,-460.0,0.00020273,2]
[374484314,1753319448672,-3244.48,0.00020273,2]
[374484315,1753319448682,-1277.08,0.00020273,2]
[374484317,1753319448691,-460.0,0.00020273,2]
[374484320,1753319448701,-536.23,0.00020273,2]
[374484321,1753319448711,-460.0,0.00020273,2]
[374484324,1753319448721,-460.0,0.00020273,2]
[374484326,1753319448731,-1444.81,0.00020273,2]
[374484328,1753319448741,-460.0,0.00020273,2]
[374484330,1753319448751,-460.0,0.00020273,2]
[374484332,1753319448760,-460.0,0.00020273,2]
[374484334,1753319448771,-314.64906921,0.00020273,2]
[374484335,1753319448781,-460.0,0.00020273,2]
[374484337,1753319448792,-963.12,0.00020273,2]
[374484339,1753319448802,-946.19,0.00020273,2]
[374484341,1753319448813,-460.0,0.00020273,2]
[374484344,1753319448823,-460.0,0.00020273,2]
[374484345,1753319448834,-460.0,0.00020273,2]
[374484347,1753319448844,-460.0,0.00020273,2]
[374484350,1753319448854,-460.0,0.00020273,2]
[374484351,1753319448864,-500.0,0.00020274,2]
[374484353,1753319448874,-198.0,0.00020274,2]
[374484356,1753319448886,-1048.0,0.00020274,2]
[374484357,1753319448896,-151.5913915,0.00020274,2]
[374484359,1753319448905,-799.0,0.00020274,2]
[374484361,1753319448915,-219.34497079,0.00020274,2]
[374484364,1753319448925,-151.0,0.00020274,2]
[374484366,1753319448936,-151.0,0.00020274,2]
[374484368,1753319448946,-247.96421555,0.00020274,2]
[374484370,1753319448955,-158.39890312,0.00020274,2]
[374484372,1753319448966,-914.94032377,0.0002039,2]
[374484374,1753319448976,-500.0,0.00020391,2]
[374484375,1753319448985,-1000.0,0.00020391,2]
[374484377,1753319448995,-845.68,0.00020538,3]
[374484379,1753319449005,-422.84,0.00020538,3]
[374484381,1753319449014,-460.0,0.00020547,2]
[374484383,1753319449024,-311.31802297,0.00020547,2]
[374484385,1753319449033,-561.21,0.00020547,2]
[374484387,1753319449045,-460.0,0.00020547,2]
[374484390,1753319449055,-730.68,0.00020547,2]
[374484391,1753319449064,-886.11,0.00020547,2]
[374484393,1753319449074,-663.34,0.00020547,2]
[374484395,1753319449083,-162.66753133,0.00020547,2]
[374484397,1753319449093,-460.0,0.00020547,2]
[374484399,1753319449103,-415.02,0.00020547,2]
[374484401,1753319449113,-460.0,0.00020547,2]
[374484403,1753319449123,-460.0,0.00020547,2]
[374484405,1753319449133,-530.04,0.00020547,2]
[374484407,1753319449143,-460.0,0.00020547,2]
[374484409,1753319449153,-460.0,0.00020547,2]
[374484411,1753319449163,-401.97474397,0.00020547,2]
[374484413,1753319449173,-460.0,0.00020547,2]
[374484415,1753319449182,-460.0,0.00020547,2]
[374484417,1753319449192,-460.0,0.00020547,2]
[374484419,1753319449202,-460.0,0.00020547,2]
[374484421,1753319449212,-460.0,0.00020547,2]
[374484423,1753319449221,-460.0,0.00020547,2]
[374484425,1753319449232,-460.0,0.00020547,2]
[374484427,1753319449241,-460.0,0.00020547,2]
[374484429,1753319449251,-460.0,0.00020547,2]
[374484431,1753319449263,-460.0,0.00020547,2]
[374484433,1753319449273,-460.0,0.00020547,2]
[374484435,1753319449282,-460.0,0.00020547,2]
[374484437,1753319449292,-460.0,0.00020547,2]
[374484439,1753319449302,-460.0,0.00020547,2]
[374484441,1753319449312,-460.0,0.00020547,2]
[374484443,1753319449323,-460.0,0.00020547,2]
[374484445,1753319449341,-460.0,0.00020547,2]
[374484447,1753319449359,-460.0,0.00020547,2]
[374484449,1753319449368,-460.0,0.00020547,2]
[374484451,1753319449378,-460.0,0.00020547,2]
[374484453,1753319449387,-1986.41,0.00020547,2]
[374484455,1753319449396,-460.0,0.00020547,2]
[374484457,1753319449406,-460.0,0.00020547,2]
[374484459,1753319449415,-515.99,0.00020547,2]
[374484461,1753319449424,-466.28,0.00020547,2]
[374484463,1753319449433,-460.0,0.00020547,2]
[374484465,1753319449443,-460.0,0.00020547,2]
[374484467,1753319449452,-460.0,0.00020547,2]
[374484469,1753319449462,-557.7,0.00020547,2]
[374484471,1753319449471,-533.05,0.00020547,2]
[374484473,1753319449481,-4232.98,0.00020547,2]
[374484475,1753319449490,-1726.98,0.00020547,2]
[374484477,1753319449500,-460.0,0.00020547,2]
[374484479,1753319449509,-668.25,0.00020547,2]
[374484481,1753319449519,-787.68,0.00020547,2]
[374484483,1753319449528,-966.97,0.00020547,2]
[374484485,1753319449538,-817.34186607,0.00020547,2]
[374484499,1753319449662,-645.01813393,0.00020547,2]
[374484501,1753319449671,-460.0,0.00020547,2]
[374484503,1753319449681,-460.0,0.00020547,2]
[374484505,1753319449690,-460.0,0.00020547,2]
[374484507,1753319449699,-460.0,0.00020547,2]
[374484509,1753319449709,-460.0,0.00020547,2]
[374484517,1753319449813,-460.0,0.00020547,2]
[374484518,1753319449823,-606.07,0.00020547,2]
[374484519,1753319449833,-153.58003465,0.00020547,2]
[374484520,1753319449843,-460.0,0.00020547,2]
[374484521,1753319449853,-228.43453808,0.00020547,2]
[374484522,1753319449863,-1277.08,0.00020547,2]
[374484523,1753319449878,-3244.48,0.00020547,2]
[374484524,1753319449887,-460.0,0.00020547,2]
[374484525,1753319449897,-536.23,0.00020547,2]
[374484526,1753319449907,-460.0,0.00020547,2]
[374484527,1753319449917,-460.0,0.00020547,2]
[374484528,1753319449932,-1444.81,0.00020547,2]
[374484529,1753319449942,-460.0,0.00020547,2]
[374484530,1753319449951,-460.0,0.00020547,2]
[374484531,1753319449961,-460.0,0.00020547,2]
[374484532,1753319449971,-460.0,0.00020547,2]
[374484533,1753319449980,-963.12,0.00020547,2]
[374484534,1753319449990,-946.19,0.00020547,2]
[374484535,1753319450000,-460.0,0.00020547,2]
[374484536,1753319450009,-478.71,0.00020547,2]
[374484537,1753319450019,-460.0,0.00020547,2]
[374484538,1753319450029,-460.0,0.00020547,2]
[374484539,1753319450039,-500.0,0.00020548,2]
[374484540,1753319450049,-1048.0,0.00020548,2]
[374484541,1753319450059,-799.0,0.00020548,2]
[374484542,1753319450069,-225.0,0.00020548,2]
[374484543,1753319450078,-198.0,0.00020548,2]
[374484544,1753319450088,-151.0,0.00020548,2]
[374484546,1753319450097,-247.231705,0.00020548,2]
[374484547,1753319450107,-151.0,0.00020559,2]
[374484549,1753319450117,-151.0,0.00020559,2]
[374484551,1753319450127,-151.0,0.0002056,2]
[374484553,1753319450137,-151.0,0.0002056,2]
[374484555,1753319450147,-151.0,0.0002056,2]
[374484557,1753319450156,-358.9969499,0.0002056,2]
[374484559,1753319450166,-151.0,0.0002056,2]
[374484561,1753319450175,-151.0,0.0002056,2]
[374484563,1753319450185,-151.0,0.0002056,2]
[374484565,1753319450194,-151.0,0.0002056,2]
[374484566,1753319450203,-151.0,0.0002056,2]
[374484569,1753319450214,-151.0,0.0002056,2]
[374484570,1753319450223,-215.0738,0.0002056,2]
[374484573,1753319450234,-151.0,0.0002056,2]
[374484574,1753319450245,-151.0,0.0002056,2]
[374484576,1753319450255,-151.0,0.0002056,2]
[374484579,1753319450272,-151.0,0.0002056,2]
[374484581,1753319450282,-151.0,0.0002056,2]
[374484583,1753319450291,-151.0,0.0002056,2]
[374484584,1753319450300,-151.0,0.0002056,2]
[374484586,1753319450311,-151.0,0.0002056,2]
[374484588,1753319450321,-151.0,0.0002056,2]
[374484590,1753319450331,-151.0,0.0002056,2]
[374484592,1753319450341,-151.0,0.0002056,2]
[374484594,1753319450351,-151.0,0.0002056,2]
[374484597,1753319450360,-151.0,0.0002056,2]
[374484598,1753319450370,-151.0,0.0002056,2]
[374484600,1753319450380,-25000.0,0.0002056,2]
[374484603,1753319450389,-1698.07362051,0.0002056,2]
[374484605,1753319450399,-151.0,0.0002056,2]
[374484606,1753319450409,-151.0,0.0002056,2]
[374484608,1753319450418,-151.0,0.0002056,2]
[374484611,1753319450428,-1000.0,0.00020568,2]
[374484612,1753319450438,-1500.0,0.00020568,2]
[374484614,1753319450448,-503.6987245,0.00020573,2]
[374484616,1753319450458,-180.32197335,0.00020573,2]
[374484618,1753319450467,-160.30182313,0.00020573,2]
[374484620,1753319450476,-540.84898244,0.00020573,2]
[374484622,1753319450486,-500.0,0.00020573,2]
[374484624,1753319450495,-500.0,0.00020573,2]
[374484626,1753319450505,-500.0,0.00020573,2]
[374484628,1753319450515,-500.0,0.00020573,2]
[374484630,1753319450524,-500.0,0.00020573,2]
[374484632,1753319450534,-150.0,0.00020624,2]
[374484634,1753319450544,-279.50449457,0.0002077,2]
[374484636,1753319450553,-178.425,0.00020781,2]
[374484638,1753319450563,-979.186,0.00020781,2]
[374484640,1753319450573,-460.0,0.00020821,2]
[374484642,1753319450583,-561.21,0.00020821,2]
[374484644,1753319450592,-460.0,0.00020821,2]
[374484646,1753319450601,-730.68,0.00020821,2]
[374484648,1753319450610,-886.11,0.00020821,2]
[374484650,1753319450620,-663.34,0.00020821,2]
[374484652,1753319450630,-460.0,0.00020821,2]
[374484654,1753319450639,-460.0,0.00020821,2]
[374484656,1753319450648,-460.0,0.00020821,2]
[374484658,1753319450658,-530.04,0.00020821,2]
[374484660,1753319450666,-460.0,0.00020821,2]
[374484662,1753319450676,-460.0,0.00020821,2]
[374484664,1753319450685,-460.0,0.00020821,2]
[374484666,1753319450695,-460.0,0.00020821,2]
[374484668,1753319450705,-460.0,0.00020821,2]
[374484670,1753319450715,-460.0,0.00020821,2]
[374484672,1753319450725,-367.00235644,0.00020821,2]
[374484674,1753319450734,-460.0,0.00020821,2]
[374484676,1753319450743,-460.0,0.00020821,2]
[374484679,1753319450759,-460.0,0.00020821,2]
[374484681,1753319450773,-460.0,0.00020821,2]
[374484684,1753319450787,-460.0,0.00020821,2]
[374484686,1753319450799,-460.0,0.00020821,2]
[374484688,1753319450815,-460.0,0.00020821,2]
[374484691,1753319450830,-460.0,0.00020821,2]
[374484693,1753319450844,-460.0,0.00020821,2]
[374484696,1753319450859,-460.0,0.00020821,2]
[374484699,1753319450875,-460.0,0.00020821,2]
[374484701,1753319450889,-460.0,0.00020821,2]
[374484703,1753319450902,-1986.41,0.00020821,2]
[374484706,1753319450914,-460.0,0.00020821,2]
[374484708,1753319450928,-460.0,0.00020821,2]
[374484710,1753319450942,-515.99,0.00020821,2]
[374484713,1753319450954,-466.28,0.00020821,2]
[374484715,1753319450965,-460.0,0.00020821,2]
[374484717,1753319450978,-460.0,0.00020821,2]
[374484719,1753319450991,-460.0,0.00020821,2]
[374484722,1753319451006,-557.7,0.00020821,2]
[374484724,1753319451020,-533.05,0.00020821,2]
[374484727,1753319451034,-4232.98,0.00020821,2]
[374484729,1753319451049,-1726.98,0.00020821,2]
[374484732,1753319451066,-460.0,0.00020821,2]
[374484734,1753319451077,-668.25,0.00020821,2]
[374484736,1753319451088,-787.68,0.00020821,2]
[374484739,1753319451099,-966.97,0.00020821,2]
[374484741,1753319451112,-1462.36,0.00020821,2]
[374484744,1753319451127,-460.0,0.00020821,2]
[374484746,1753319451140,-460.0,0.00020821,2]
[374484748,1753319451150,-460.0,0.00020821,2]
[374484750,1753319451163,-460.0,0.00020821,2]
[374484753,1753319451177,-460.0,0.00020821,2]
[374484755,1753319451191,-460.0,0.00020821,2]
[374484758,1753319451202,-606.07,0.00020821,2]
[374484760,1753319451213,-460.0,0.00020821,2]
[374484762,1753319451224,-1277.08,0.00020821,2]
[374484764,1753319451236,-3244.48,0.00020821,2]
[374484767,1753319451248,-460.0,0.00020821,2]
[374484769,1753319451262,-536.23,0.00020821,2]
[374484771,1753319451274,-460.0,0.00020821,2]
[374484773,1753319451285,-460.0,0.00020821,2]
[374484775,1753319451296,-1444.81,0.00020821,2]
[374484777,1753319451308,-460.0,0.00020821,2]
[374484780,1753319451323,-460.0,0.00020821,2]
[374484782,1753319451335,-460.0,0.00020821,2]
[374484784,1753319451347,-460.0,0.00020821,2]
[374484786,1753319451360,-963.12,0.00020821,2]
[374484789,1753319451371,-946.19,0.00020821,2]
[374484791,1753319451383,-460.0,0.00020821,2]
[374484793,1753319451395,-460.0,0.00020821,2]
[374484795,1753319451407,-460.0,0.00020821,2]
[374484798,1753319451419,-500.0,0.00020822,2]
[374484800,1753319451431,-1048.0,0.00020822,2]
[374484802,1753319451442,-799.0,0.00020822,2]
[374484804,1753319451453,-500.0,0.00020824,2]
[374484807,1753319451465,-500.0,0.00020824,2]
[374484809,1753319451477,-5371.0,0.00020845,2]
[374484811,1753319451488,-250.12389181,0.000209,2]
[374484813,1753319451500,-153.0,0.00020932,2]
[374484816,1753319451512,-153.0,0.00020932,2]
[374484818,1753319451524,-392.5409004,0.00020932,2]
[374484820,1753319451535,-723.23880831,0.00020939,2]
[374484822,1753319451547,-5371.0,0.00020956,2]
[374484824,1753319451558,-5371.0,0.00020967,2]
[374484827,1753319451570,-306.0,0.00021018,2]
[374484829,1753319451582,-306.6828277,0.00021019,2]
[374484831,1753319451594,-460.0,0.00021095,2]
[374484834,1753319451606,-561.21,0.00021095,2]
[374484836,1753319451615,-460.0,0.00021095,2]
[374484838,1753319451624,-730.68,0.00021095,2]
[374484839,1753319451633,-886.11,0.00021095,2]
[374484841,1753319451643,-663.34,0.00021095,2]
[374484844,1753319451652,-460.0,0.00021095,2]
[374484846,1753319451662,-460.0,0.00021095,2]
[374484847,1753319451672,-460.0,0.00021095,2]
[374484849,1753319451681,-530.04,0.00021095,2]
[374484851,1753319451691,-460.0,0.00021095,2]
[374484853,1753319451701,-460.0,0.00021095,2]
[374484855,1753319451710,-460.0,0.00021095,2]
[374484858,1753319451720,-460.0,0.00021095,2]
[374484859,1753319451729,-460.0,0.00021095,2]
[374484862,1753319451739,-460.0,0.00021095,2]
[374484863,1753319451748,-460.0,0.00021095,2]